Workbook

Sheet Introduction
B3: KSU-Beef Cow Lease
B5: Excel spreadsheet for estabishing a calf-income split or cash rental rate for leasing a beef cow herd
L8: Version- 9.6.2016
B28: INTRODUCTION
B29: The KSU-Beef Cow Lease spreadsheet takes a budgeting approach to estimate the costs and returns for a year-long lease of a beef cow herd. The Cattle Owner and Livestock Operator need to determine who will be contributing each expense and calf income will be shared accordingly. Note: If the cowherd will be transitioning from the Cattle Owner to the Livestock Operator the spreadsheet should be re-evaluated every year as cattle ownership changes.
B31: This spreasheet is directly linked to the K-State Beef Farm Management Guides and will be updated quarterly. Users still need to enter prices/costs for their own production scenario.
B32: INSTRUCTIONS FOR THE USER:
B33: Be sure to "Enable Content" and "Enable Macros" for the spreadsheet to function correctly. Blue values are inputs that should be changed from the defaults to match your operation. Black values are automatically calculated.
B36: There are two spreadsheets for cow leasing: Lease with Raised Repl assumes that heifers will be retained for replacements from the cowherd and expenses in developing them are split the same as other cowherd expenses. Lease with Purchased Repl assumes that all calves will be sold or transitioned out of the herd at weaning and bred heifers will be purchased for replacements.
B41: FOR MORE INFORMATION:
B42: Developed by:
B44: Robin Reid | G44: Glynn T. Tonsor, Ph.D.
B45: Extension Associate | G45: Agricultural Economist
B46: Department of Agricultural Economics | G46: Department of Agricultural Economics
B47: Kansas State University | G47: Kansas State University
B48: robinreid@ksu.edu | G48: gtonsor@k-state.edu
B49: 785-532-0964 | G49: 785-532-1518
B51: ACKNOWLEDGEMENTS:
B52: The developers would like to thank the K-State Beef Team for their contributions: Dr. Sandy Johnson, Dr. Dale Blasi, Dr. Joel DeRouchey, Dr. Jaymelynn Farney, Dr. Christopher Reinhardt, Dr. Justin Waggoner, and Dr. Bob Weaber www.KSUBeef.org
B56: Copyright 2016 AgManager.info, K-State Department of Agricultural Economics

Sheet Prices
A1: 2016 Production Year
A2: Five Years Out Prices
B3: =A1 -> 2016 Production Year | C3: =A2 -> Five Years Out Prices
B4: (as of Sept 1st, 2016) | C4: (Nov. 2015 USDA)
A5: Corn ($/bu) | B5: 2.925 | C5: 3.7 | D5: http://www.usda.gov/oce/commodity/projections/
A6: Soybean Meal ($/ton) | B6: 311.2 | C6: 330 | D6: http://www.usda.gov/oce/commodity/projections/
A7: DDGS ($/ton) | B7: 132.5 | C7: 167.6068376 | D7: Adjust off of Corn Price
A9: Silage ($/ton) | B9: 23.4 | C9: 29.6 | D9: Equal to 8X the corn price
A10: Prairie Hay ($/ton) | B10: 60 | C10: 75.8974359 | D10: Adjust off of Corn Price
A11: Alfalfa ($/ton) | B11: 105 | C11: 132.8205128 | D11: Adjust off of Corn Price
A12: Pasture Rental ($/acre) | B12: 19.22 | C12: 21.142 | D12: Current price *1.10
A13: Crop Residue ($/acre) | B13: 15 | C13: 16.5 | D13: Current price *1.10
A14: Beef Cow Mineral ($/ton) | B14: 800 | C14: 880 | D14: Current price *1.10
A15: Other Beef Mineral ($/ton) | B15: 550 | C15: 605 | D15: Current price *1.10
A17: Oct. Heifer Calf Price ($/cwt)* | B17: 131.62 | C17: 174.4950848 | D17: Adjust off of Steer Calf price
A18: Oct. Steer Calves Price ($/cwt)* | B18: 141.52 | C18: 187.62 | D18: http://www.usda.gov/oce/commodity/projections/
A19: Beef Cull cow ($/cwt)***** | B19: 67.75 | C19: 82.25046148 | D19: Fed cattle change imposed
A21: * This a predicted October price for the budget year
A22: *****This a current cull cow price for the date of the latest price update

Sheet Feed
B1: CATTLE RATIONS TO SET FEED AND GRAZING COSTS | I1: These tables will be hidden when posted
B3: Feed Requirements with Raised Replacements | C3: (per cow unit + 16% of developing heifer + 4% of bull) | I3: Cow Ration
C4: Qty | D4: Unit | I4: Date Range | J4: Days | K4: Hay (pounds) | L4: Supplement (DDGS) (pounds) | M4: Grain (pounds) | N4: Mineral (pounds) | O4: Pasture (acres) | P4: Corn Stalks (acres)
B5: Pasture | C5: =O10+(0.04*O19)+(0.16*O28) -> 9.54 | D5: total acres per year | I5: 1/1-3/1 | J5: 60 | K5: 31 | L5: 2 | N5: 0.25
B6: Crop Residue Grazing | C6: =P10+(0.04*P19)+(0.16*P28) -> 2.08 | D6: total acres per year | I6: 3/1-5/1 | J6: 61 | K6: 32 | L6: 7 | N6: 0.25
B7: Prairie/Brome Hay | C7: =(K10+(0.04*K19)+(0.16*K28))/2000 -> 2.24832 | D7: total tons per year | I7: 5/1-10/31 | J7: 183 | N7: 0.25 | O7: 8.5
B8: Silage | C8: 0 | D8: total tons per year | I8: 11/1-12/31 | J8: 61 | L8: 3 | N8: 0.25 | P8: 2
B9: Alfalfa | C9: 0 | D9: total tons per year
B10: Total Harvested Forage | C10: =SUM(C7:C9) -> 2.24832 | D10: total tons per year | I10: Total | J10: =SUM(J5:J8) -> 365 | K10: =SUMPRODUCT($J$5:$J$8,K5:K8) -> 3812 | L10: =SUMPRODUCT($J$5:$J$8,L5:L8) -> 730 | M10: =SUMPRODUCT($J$5:$J$8,M5:M8) -> 0 | N10: =SUMPRODUCT($J$5:$J$8,N5:N8) -> 91.25 | O10: =SUM(O5:O8) -> 8.5 | P10: =SUM(P5:P8) -> 2
B11: Corn | C11: =M10+(0.04*M19)+(0.16*M28) -> 95.04 | D11: total lbs per year | J11: Tons | K11: =K10/2000 -> 1.906
B12: DDG's | C12: =L10+(0.04*L19)+(0.16*L28) -> 737.546 | D12: total lbs per year
B13: Soybean Meal | C13: 0 | D13: total lbs per year | I13: Bull Ration
B14: Total Grain/Protein Supplements | C14: =SUM(C11:C13) -> 832.586 | D14: total lbs per year | I14: Date Range | J14: Days | K14: Hay (pounds) | L14: Supplement (DDGS) (pounds) | M14: Grain (pounds) | N14: Mineral (pounds) | O14: Pasture (acres) | P14: Corn Stalks (acres)
B15: Salt and Mineral | C15: =N10+(0.04*N19)+(0.16*N28) -> 100.74 | D15: total lbs per year | I15: 1/1-4/30 | J15: 121 | K15: 40 | L15: 0.25 | N15: 0.25
I16: 5/1-10/31 | J16: 183 | N16: 0.25 | O16: 8
I17: 11/1-12/31 | J17: 61 | N17: 0.25 | P17: 2
B18: Feed Requirements without Purchased Replacements | C18: (per cow unit + 16% of developing heifer + 4% of bull)
C19: Qty | D19: Unit | I19: Total | J19: =SUM(J15:J17) -> 365 | K19: =SUMPRODUCT($J$15:$J$17,K15:K17) -> 4840 | L19: =SUMPRODUCT($J$15:$J$17,L15:L17) -> 30.25 | M19: =SUMPRODUCT($J$15:$J$17,M15:M17) -> 0 | N19: =SUMPRODUCT($J$15:$J$17,N15:N17) -> 91.25 | O19: =SUM(O15:O17) -> 8 | P19: =SUM(P15:P17) -> 2
B20: Pasture | C20: =O10+(0.04*O19) -> 8.82 | D20: total acres per year | J20: Tons | K20: =K19/2000 -> 2.42
B21: Crop Residue | C21: =P10+(0.04*P19) -> 2.08 | D21: total acres per year
B22: Prairie/Brome Hay | C22: =K11+(0.04*K20) -> 2.0028 | D22: total tons per year | I22: Heifer Ration
B23: Silage | C23: 0 | D23: total tons per year | I23: Date Range | J23: Days | K23: Hay (pounds) | L23: Supplement (DDGS) (pounds) | M23: Grain (pounds) | N23: Mineral (pounds) | O23: Pasture (acres) | P23: Corn Stalks (acres)
B24: Alfalfa | C24: 0 | D24: total tons per year | I24: 1/1-4/30 | J24: 121 | K24: 15.5 | L24: 0.2 | M24: 3 | N24: 0.1
B25: Total Harvested Forage | C25: =SUM(C22:C24) -> 2.0028 | D25: total tons per year | I25: 5/1-10/15 | J25: 167 | N25: =N24 -> 0.1 | O25: 4.5
B26: Corn | C26: =M10+(0.04*M19) -> 0 | D26: total lbs per year | I26: 10/15-12/31 | J26: 77 | K26: 15.5 | L26: 0.2 | M26: 3 | N26: =N25 -> 0.1
B27: DDG's | C27: =L10+(0.04*L19) -> 731.21 | D27: total lbs per year
B28: Soybean Meal | C28: 0 | D28: total lbs per year | I28: Total | J28: =SUM(J24:J26) -> 365 | K28: =SUMPRODUCT($J$24:$J$26,K24:K26) -> 3069 | L28: =SUMPRODUCT($J$24:$J$26,L24:L26) -> 39.6 | M28: =SUMPRODUCT($J$24:$J$26,M24:M26) -> 594 | N28: =SUMPRODUCT($J$24:$J$26,N24:N26) -> 36.5 | O28: =SUM(O24:O26) -> 4.5 | P28: =SUM(P24:P26) -> 0
B29: Total Grain/Protein Supplements | C29: =SUM(C26:C28) -> 731.21 | D29: total lbs per year | J29: Tons | K29: =K28/2000 -> 1.5345
B30: Salt and Mineral | C30: =N10+(0.04*N19) -> 94.9 | D30: total lbs per year

Sheet Lease with Raised Repl
A1: KSU Beef Cow Lease | C1: 2016 Production Year | G1: =IF(C1=Prices!B3,TEXT(Prices!B4,"MMM-YYYY"),TEXT(Prices!C4,"MMM-YYYY")) -> (as of Sept 1st, 2016)
L2: Change percentages to reflect which party is contributing the expense or receiving the income
A3: Production Efficiency Information
A4: Weaning Percentage | B4: 0.91
A5: Cow Replacement Percentage | B5: 0.16 | C5: Cow Culling Percentage | G5: 0.16
A7: Revenue | B7: Price | C7: Unit | E7: Qty | F7: Unit | J7: Total per Year per Cow | L7: Cattle Owner | M7: Livestock Operator
A8: Weaned Calf Sale | B8: =0.5*(IF(C1=Prices!A1,Prices!B18,Prices!C18))+0.5*(IF(C1=Prices!A1,Prices!B17,Prices!C17)) -> 136.57 | C8: per cwt | D8: x | E8: 550 | F8: lbs | G8: x | H8: =B4 -> 0.91 | I8: = | J8: =B8*(E8/100)*H8 -> 683.53285 | L8: Split | M8: Split
A9: Cull Cows | B9: =IF(C1=Prices!A1,Prices!B19,Prices!C19) -> 67.75 | C9: per cwt | D9: x | E9: 1250 | F9: lbs | G9: x | H9: =G5 -> 0.16 | I9: = | J9: =B9*(E9/100)*H9 -> 135.5 | L9: 1 | M9: =1-L9 -> 0
A10: Other Income | J10: 0 | L10: 1 | M10: =1-L10 -> 0
A11: Gross Income | J11: =SUM(J8:J10) -> 819.03285
A13: Variable Costs
A14: Pasture | B14: =IF(C1=Prices!A1, Prices!B12,Prices!C12) -> 19.22 | C14: per acre | D14: x | E14: =Feed!C5 -> 9.54 | F14: total acres | I14: = | J14: =B14*E14 -> 183.3588 | L14: 0 | M14: =1-L14 -> 1
A15: Crop Residue | B15: =IF(C1=Prices!A1, Prices!B13,Prices!C13) -> 15 | C15: per acre | D15: x | E15: =Feed!C6 -> 2.08 | F15: total acres | I15: = | J15: =B15*E15 -> 31.2 | L15: 0 | M15: =1-L15 -> 1
A16: Harvested Forage | B16: =IF(C1=Prices!A1,(((Feed!C7/Feed!C10)*Prices!B10)+((Feed!C8/Feed!C10)*Prices!B9)+((Feed!C9/Feed!C10)*Prices!B11)),((Feed!C7/Feed!C10)*Prices!C10)+((Feed!C8/Feed!C10)*Prices!C9)+((Feed!C9/Feed!C10)*Prices!C11)) -> 60 | C16: per ton | D16: x | E16: =Feed!C10 -> 2.24832 | F16: total tons | I16: = | J16: =B16*E16 -> 134.8992 | L16: 0 | M16: 1
A17: Grain/Protein Supplements | B17: =IF(C1=Prices!A1,(((Feed!C13/Feed!C14)*Prices!B6)+((Feed!C12/Feed!C14)*Prices!B7)+((Feed!C11/Feed!C14)*(Prices!B5*2000)/56)),(((Feed!C13/Feed!C14)*Prices!C6)+((Feed!C12/Feed!C14)*Prices!C7)+((Feed!C11/Feed!C14)*(Prices!C5*2000)/56))) -> 129.2997128 | C17: per ton | D17: x | E17: =Feed!C14 -> 832.586 | F17: total lbs | I17: = | J17: =(B17/2000)*E17 -> 53.82656536 | L17: 0 | M17: 1
A18: Mineral | B18: =IF(C1=Prices!A1,Prices!B14,Prices!C14) -> 800 | C18: per ton | D18: x | E18: =Feed!C15 -> 100.74 | F18: total lbs | I18: = | J18: =(B18/2000)*E18 -> 40.296 | L18: 0 | M18: 1
A19: Other Feed | B19: 0 | C19: per unit | D19: x | E19: 0 | F19: units | I19: = | J19: =B19*E19 -> 0 | L19: 0 | M19: 1
A20: Labor | B20: 20 | C20: per hour | D20: x | E20: 8 | F20: total hours | I20: = | J20: =B20*E20 -> 160 | L20: 0.05 | M20: 0.95
A21: Vet Medicine/Drugs | J21: 29 | L21: 0.5 | M21: 0.5
A22: Replacement Females | B22: =((IF(C1=Prices!A1, Prices!B17,Prices!C17))/100)*E8 -> 723.91 | C22: per head | D22: x | E22: =B5 -> 0.16 | F22: hd | I22: = | J22: =B22*E22 -> 115.8256 | L22: 1 | M22: 0
A23: Annual Bull Charge or A.I. | J23: =((6000-1700)/4)*0.04 -> 43 | L23: 1 | M23: 0
A24: Other Livestock Breeding/Marketing | J24: 23 | L24: 0 | M24: 1
A25: Utilities,Gas, Fuel, Oil | J25: 44 | L25: 0 | M25: 1
A26: Machinery, Facility/Equip. Repairs | J26: 56 | L26: 0 | M26: 1
A27: Other variable costs | J27: 17 | L27: 0.5 | M27: 0.5
A28: Total Variable Costs | J28: =SUM(J14:J27) -> 931.4061654 | L28: =SUMPRODUCT(J14:J27,L14:L27) -> 189.8256 | M28: =SUMPRODUCT(J14:J27,M14:M27) -> 741.5805654
A30: Fixed Costs
A31: Cattle Ownership Interest | B31: 2000 | C31: avg. value | D31: x | E31: 0.06 | F31: interest rate | I31: = | J31: =B31*E31 -> 120 | L31: 1 | M31: =1-L31 -> 0
A32: Cow Death Loss | B32: 2000 | C32: avg. value | D32: x | E32: 0.01 | F32: cow death loss | I32: = | J32: =B32*E32 -> 20 | L32: =L31 -> 1 | M32: =1-L32 -> 0
A33: Cow Depreciation | J33: 0 | L33: 1 | M33: 0
A34: Equipment/Building Depreciation | J34: 57 | L34: 0 | M34: 1
A35: Taxes | J35: 7 | L35: 0 | M35: 1
A36: Farm/Livestock Insurance | J36: 13 | L36: 0.5 | M36: =1-L36 -> 0.5
A37: Other fixed costs | J37: 0 | L37: 0.5 | M37: 0.5
A38: Total Fixed Costs | J38: =SUM(J31:J37) -> 217 | L38: =SUMPRODUCT(J31:J37,L31:L37) -> 146.5 | M38: =SUMPRODUCT(J31:J37,M31:M37) -> 70.5
A40: Total Costs | J40: =J28+J38 -> 1148.406165 | L40: =SUM(L28,L38) -> 336.3256 | M40: =SUM(M28,M38) -> 812.0805654
L41: =L40-SUMPRODUCT(L9:L10,J9:J10) -> 200.8256 | M41: =M40-SUMPRODUCT(M9:M10,J9:J10) -> 812.0805654 | N41: Expenses Contributed Less Cull Cow and Other Income
A42: Income Over Variable Costs | J42: =J11-J28 -> -112.3733154 | L42: =L41/SUM(L41,M41) -> 0.1982667367 | M42: =M41/(SUM(L41,M41)) -> 0.8017332633 | N42: Percentage of calves to split
A43: Income Over Total Costs | J43: =J11-J40 -> -329.3733154 | L43: =L42*J8 -> 135.5218276 | M43: =M42*J8 -> 548.0110224 | N43: Anticipated Income per cow
A45: Kansas State University, Department of Agricultural Economics - www.agmanager.info
A46: Publication: AM-FMG-CowLease | I46: =TEXT(Introduction!L8,"MMM. DD, YYYY") -> Version- 9.6.2016
A48: =A1 -> KSU Beef Cow Lease
A92: Kansas State University, Department of Agricultural Economics - www.agmanager.info
A93: =A46 -> Publication: AM-FMG-CowLease | I93: =I46 -> Version- 9.6.2016
A95: =A1 -> KSU Beef Cow Lease
A100: Budget Assumptions
A102: Cow-Calf Feed Requirements | B102: (per cow unit + 16% of developing heifer + 4% of bull)
B103: Qty | C103: Unit
A104: Pasture | B104: =Feed!C5 -> 9.54 | C104: total acres per year
A105: Crop Residue Grazing | B105: =Feed!C6 -> 2.08 | C105: total acres per year
A106: Prairie/Brome Hay | B106: =Feed!C7 -> 2.24832 | C106: total tons per year
A107: Silage | B107: =Feed!C8 -> 0 | C107: total tons per year
A108: Alfalfa | B108: =Feed!C9 -> 0 | C108: total tons per year
A109: Total Harvested Forage | B109: =Feed!C10 -> 2.24832 | C109: total tons per year
A110: Corn | B110: =Feed!C11 -> 95.04 | C110: total lbs per year
A111: DDG's | B111: =Feed!C12 -> 737.546 | C111: total lbs per year
A112: Soybean Meal | B112: =Feed!C13 -> 0 | C112: total lbs per year
A113: Total Grain/Protein Supplements | B113: =Feed!C14 -> 832.586 | C113: total lbs per year
A114: Salt and Mineral | B114: =Feed!C15 -> 100.74 | C114: total lbs per year
A117: Default Cow-Calf Prices
B118: 2016 | C118: Five Years Out
A119: =Prices!A5 -> Corn ($/bu) | B119: =Prices!B5 -> 2.925 | C119: =Prices!C5 -> 3.7
A120: =Prices!A7 -> DDGS ($/ton) | B120: =Prices!B7 -> 132.5 | C120: =Prices!C7 -> 167.6068376
A121: =Prices!A10 -> Prairie Hay ($/ton) | B121: =Prices!B10 -> 60 | C121: =Prices!C10 -> 75.8974359
A122: =Prices!A12 -> Pasture Rental ($/acre) | B122: =Prices!B12 -> 19.22 | C122: =Prices!C12 -> 21.142
A123: =Prices!A13 -> Crop Residue ($/acre) | B123: =Prices!B13 -> 15 | C123: =Prices!C13 -> 16.5
A124: =Prices!A14 -> Beef Cow Mineral ($/ton) | B124: =Prices!B14 -> 800 | C124: =Prices!C14 -> 880
A125: =Prices!A17 -> Oct. Heifer Calf Price ($/cwt)* | B125: =Prices!B17 -> 131.62 | C125: =Prices!C17 -> 174.4950848
A126: =Prices!A18 -> Oct. Steer Calves Price ($/cwt)* | B126: =Prices!B18 -> 141.52 | C126: =Prices!C18 -> 187.62
A127: =Prices!A19 -> Beef Cull cow ($/cwt)***** | B127: =Prices!B19 -> 67.75 | C127: =Prices!C19 -> 82.25046148
A129: =Prices!A21 -> * This a predicted October price for the budget year
A130: =Prices!A22 -> *****This a current cull cow price for the date of the latest price update
A133: Kansas State University, Department of Agricultural Economics - www.agmanager.info
A134: =A93 -> Publication: AM-FMG-CowLease | I134: =I93 -> Version- 9.6.2016
A189: KSU Beef Cow Lease | C189: =C1 -> 2016 Production Year | G189: =G1 -> (as of Sept 1st, 2016)
A191: Production Efficiency Information
A192: Weaning Percentage | B192: =B4 -> 0.91
A193: Cow Replacement Percentage | B193: =B5 -> 0.16 | C193: Cow Culling Percentage | G193: =G5 -> 0.16
A195: Revenue | B195: Total per Year per Cow | C195: Cattle Owner | D195: Livestock Operator
A196: Weaned Calf Sale | B196: =J8 -> 683.53285 | C196: =L8 -> Split | D196: Split
A197: Cull Cows | B197: =J9 -> 135.5 | C197: =L9 -> 1 | D197: =1-C197 -> 0
A198: Other Income | B198: =J10 -> 0 | C198: =L10 -> 1 | D198: =1-C198 -> 0
A199: Gross Income | B199: =J11 -> 819.03285
A201: Variable Costs
A202: Pasture | B202: =J14 -> 183.3588 | C202: =L14 -> 0 | D202: =1-C202 -> 1
A203: Crop Residue | B203: 31.2 | C203: 0 | D203: =1-C203 -> 1
A204: Harvested Forage | B204: 134.8992 | C204: 0 | D204: 1
A205: Grain/Protein Supplements | B205: 53.82656536 | C205: 0 | D205: 1
A206: Mineral | B206: 40.296 | C206: 0 | D206: 1
A207: Other Feed | B207: 0 | C207: 0 | D207: 1
A208: Labor | B208: 160 | C208: 0.05 | D208: 0.95
A209: Vet Medicine/Drugs | B209: 29 | C209: 0.5 | D209: 0.5
A210: Replacement Females | B210: 115.8256 | C210: 1 | D210: 0
A211: Annual Bull Charge or A.I. | B211: 43 | C211: 1 | D211: 0
A212: Other Livestock Breeding/Marketing | B212: 23 | C212: 0 | D212: 1
A213: Utilities,Gas, Fuel, Oil | B213: 44 | C213: 0 | D213: 1
A214: Machinery, Facility/Equip. Repairs | B214: 56 | C214: 0 | D214: 1
A215: Other variable costs | B215: 17 | C215: 0.5 | D215: 0.5
A216: Total Variable Costs | B216: 931.4061654 | C216: 189.8256 | D216: =M28 -> 741.5805654
A218: Fixed Costs
A219: Cattle Ownership Interest | B219: =J31 -> 120 | C219: =L31 -> 1 | D219: =1-C219 -> 0
A220: Cow Death Loss | B220: =J32 -> 20 | C220: =L32 -> 1 | D220: =1-C220 -> 0
A221: Equipment/Building Depreciation | B221: =J34 -> 57 | C221: =L35 -> 0 | D221: 1
A222: Taxes | B222: 7 | C222: =L36 -> 0.5 | D222: 0.5
A223: Farm/Livestock Insurance | B223: 13 | C223: =L37 -> 0.5 | D223: =1-C223 -> 0.5
A224: Other fixed costs | B224: 0 | C224: =L37 -> 0.5 | D224: =1-C224 -> 0.5
A225: Total Fixed Costs | B225: =J38 -> 217 | C225: =L38 -> 146.5 | D225: =M38 -> 70.5
A227: Total Costs | B227: =J40 -> 1148.406165 | C227: =L40 -> 336.3256 | D227: 812.0805654
C228: 200.8256 | D228: 812.0805654 | F228: Expenses Contributed Less Cull Cow and Other Income
A229: Income Over Variable Costs | B229: =J42 -> -112.3733154 | C229: 0.1982667367 | D229: 0.8017332633 | F229: Percentage of calves to split
A230: Income Over Total Costs | B230: =J43 -> -329.3733154 | C230: 135.5218276 | D230: 548.0110224 | F230: Anticipated Income per cow
A234: Kansas State University, Department of Agricultural Economics - www.agmanager.info
A235: =A134 -> Publication: AM-FMG-CowLease | I235: =I134 -> Version- 9.6.2016

Sheet Lease with Purchased Repl
A1: KSU Beef Cow Lease | C1: 2016 Production Year | G1: =IF(C1=Prices!B3,TEXT(Prices!B4,"MMM-YYYY"),TEXT(Prices!C4,"MMM-YYYY")) -> (as of Sept 1st, 2016)
L2: Change percentages to reflect which party is contributing the expense or receiving the income
A3: Production Efficiency Information
A4: Weaning Percentage | B4: 0.91
A5: Cow Replacement Percentage | B5: 0.16 | C5: Cull Cow Percentage | G5: 0.16
A7: Revenue | B7: Price | C7: Unit | E7: Qty | F7: Unit | J7: Total per Year per Cow | L7: Cattle Owner | M7: Livestock Operator
A8: Weaned Calf Sale | B8: =0.5*(IF(C1=Prices!A1,Prices!B18,Prices!C18))+0.5*(IF(C1=Prices!A1,Prices!B17,Prices!C17)) -> 136.57 | C8: per cwt | D8: x | E8: 550 | F8: lbs | G8: x | H8: =B4 -> 0.91 | I8: = | J8: =B8*(E8/100)*H8 -> 683.53285 | L8: Split | M8: Split
A9: Cull Cows | B9: =IF(C1=Prices!A1,Prices!B19,Prices!C19) -> 67.75 | C9: per cwt | D9: x | E9: 1250 | F9: lbs | G9: x | H9: =G5 -> 0.16 | I9: = | J9: =B9*(E9/100)*H9 -> 135.5 | L9: 1 | M9: =1-L9 -> 0
A10: Other Income | J10: 0 | L10: 1 | M10: =1-L10 -> 0
A11: Gross Income | J11: =SUM(J8:J10) -> 819.03285
A13: Variable Costs
A14: Pasture | B14: =IF(C1=Prices!A1, Prices!B12,Prices!C12) -> 19.22 | C14: per acre | D14: x | E14: =Feed!C20 -> 8.82 | F14: total acres | I14: = | J14: =B14*E14 -> 169.5204 | L14: 0 | M14: =1-L14 -> 1
A15: Crop Residue | B15: =IF(C1=Prices!A1, Prices!B13,Prices!C13) -> 15 | C15: per acre | D15: x | E15: =Feed!C21 -> 2.08 | F15: total acres | I15: = | J15: =B15*E15 -> 31.2 | L15: 0 | M15: =1-L15 -> 1
A16: Harvested Forage | B16: =IF(C1=Prices!A1,(((Feed!C7/Feed!C10)*Prices!B10)+((Feed!C8/Feed!C10)*Prices!B9)+((Feed!C9/Feed!C10)*Prices!B11)),((Feed!C7/Feed!C10)*Prices!C10)+((Feed!C8/Feed!C10)*Prices!C9)+((Feed!C9/Feed!C10)*Prices!C11)) -> 60 | C16: per ton | D16: x | E16: =Feed!C25 -> 2.0028 | F16: total tons | I16: = | J16: =B16*E16 -> 120.168 | L16: 0 | M16: 1
A17: Grain/Protein Supplements | B17: =IF(C1=Prices!A1,(((Feed!C13/Feed!C14)*Prices!B6)+((Feed!C12/Feed!C14)*Prices!B7)+((Feed!C11/Feed!C14)*(Prices!B5*2000)/56)),(((Feed!C13/Feed!C14)*Prices!C6)+((Feed!C12/Feed!C14)*Prices!C7)+((Feed!C11/Feed!C14)*(Prices!C5*2000)/56))) -> 129.2997128 | C17: per ton | D17: x | E17: =Feed!C29 -> 731.21 | F17: total lbs | I17: = | J17: =(B17/2000)*E17 -> 47.27262151 | L17: 0 | M17: 1
A18: Mineral | B18: =IF(C1=Prices!A1,Prices!B14,Prices!C14) -> 800 | C18: per ton | D18: x | E18: =Feed!C30 -> 94.9 | F18: total lbs | I18: = | J18: =(B18/2000)*E18 -> 37.96 | L18: 0 | M18: 1
A19: Other Feed | B19: 0 | C19: per unit | D19: x | E19: 0 | F19: units | I19: = | J19: =B19*E19 -> 0 | L19: 0 | M19: 1
A20: Labor | B20: 20 | C20: per hour | D20: x | E20: 6 | F20: total hours | I20: = | J20: =B20*E20 -> 120 | L20: 0.1 | M20: 0.9
A21: Vet Medicine/Drugs | J21: =0.87*'Lease with Raised Repl'!J21 -> 25.23 | L21: 0.5 | M21: 0.5
A22: Replacement Females | B22: 1500 | C22: per head | D22: x | E22: =B5 -> 0.16 | F22: hd | I22: = | J22: =B22*E22 -> 240 | L22: 1 | M22: 0
A23: Annual Bull Charge or A.I. | J23: =0.87*'Lease with Raised Repl'!J23 -> 37.41 | L23: 1 | M23: 0
A24: Other Livestock Breeding/Marketing | J24: =0.87*'Lease with Raised Repl'!J24 -> 20.01 | L24: 0 | M24: 1
A25: Utilities,Gas, Fuel, Oil | J25: =0.87*'Lease with Raised Repl'!J25 -> 38.28 | L25: 0 | M25: 1
A26: Machinery, Facility/Equip. Repairs | J26: =0.87*'Lease with Raised Repl'!J26 -> 48.72 | L26: 0 | M26: 1
A27: Other variable costs | J27: =0.87*'Lease with Raised Repl'!J27 -> 14.79 | L27: 0.5 | M27: 0.5
A28: Total Variable Costs | J28: =SUM(J14:J27) -> 950.5610215 | L28: =SUMPRODUCT(J14:J27,L14:L27) -> 309.42 | M28: =SUMPRODUCT(J14:J27,M14:M27) -> 641.1410215
A30: Fixed Costs
A31: Cattle Ownership Interest | B31: 2000 | C31: avg. value | D31: x | E31: 0.06 | F31: interest rate | I31: = | J31: =B31*E31 -> 120 | L31: 1 | M31: =1-L31 -> 0
A32: Cow Death Loss | B32: 2000 | C32: avg. value | D32: x | E32: 0.01 | F32: cow death loss | I32: = | J32: =B32*E32 -> 20 | L32: =L31 -> 1 | M32: =1-L32 -> 0
A33: Cow Depreciation | J33: 0 | L33: =L31 -> 1 | M33: 0
A34: Equipment/Building Depreciation | J34: 57 | L34: 0 | M34: 1
A35: Taxes | J35: 7 | L35: 0 | M35: 1
A36: Farm/Livestock Insurance | J36: =0.87*'Lease with Raised Repl'!J36 -> 11.31 | L36: 0.5 | M36: =1-L36 -> 0.5
A37: Other fixed costs | J37: 0 | L37: 0.5 | M37: 0.5
A38: Total Fixed Costs | J38: =SUM(J31:J37) -> 215.31 | L38: =SUMPRODUCT(J31:J37,L31:L37) -> 145.655 | M38: =SUMPRODUCT(J31:J37,M31:M37) -> 69.655
A40: Total Costs | J40: =J28+J38 -> 1165.871022 | L40: =SUM(L28,L38) -> 455.075 | M40: =SUM(M28,M38) -> 710.7960215
L41: =L40-SUMPRODUCT(L9:L10,J9:J10) -> 319.575 | M41: =M40-SUMPRODUCT(M9:M10,J9:J10) -> 710.7960215 | N41: Expenses Contributed Less Cull Cow and Other Income
A42: Income Over Variable Costs | J42: =J11-J28 -> -131.5281715 | L42: =L41/SUM(L41,M41) -> 0.3101552677 | M42: =M41/(SUM(L41,M41)) -> 0.6898447323 | N42: Percentage of calves to split
A43: Income Over Total Costs | J43: =J11-J40 -> -346.8381715 | L43: =L42*J8 -> 212.0013141 | M43: =M42*J8 -> 471.5315359 | N43: Anticipated Income per cow
A46: Kansas State University, Department of Agricultural Economics - www.agmanager.info
A47: Publication: AM-FMG-CowLease | I47: =TEXT(Introduction!L8,"MMM. DD, YYYY") -> Version- 9.6.2016
A49: =A1 -> KSU Beef Cow Lease
A93: Kansas State University, Department of Agricultural Economics - www.agmanager.info
A94: =A47 -> Publication: AM-FMG-CowLease | I94: =I47 -> Version- 9.6.2016
A96: =A1 -> KSU Beef Cow Lease
A101: Budget Assumptions
A103: Cow-Calf Feed Requirements | B103: (per cow unit + 4% of bull)
B104: Qty | C104: Unit
A105: Pasture | B105: =Feed!C20 -> 8.82 | C105: total acres per year
A106: Crop Residue Grazing | B106: =Feed!C21 -> 2.08 | C106: total acres per year
A107: Prairie/Brome Hay | B107: =Feed!C22 -> 2.0028 | C107: total tons per year
A108: Silage | B108: =Feed!C23 -> 0 | C108: total tons per year
A109: Alfalfa | B109: =Feed!C24 -> 0 | C109: total tons per year
A110: Total Harvested Forage | B110: =Feed!C25 -> 2.0028 | C110: total tons per year
A111: Corn | B111: =Feed!C26 -> 0 | C111: total lbs per year
A112: DDG's | B112: =Feed!C27 -> 731.21 | C112: total lbs per year
A113: Soybean Meal | B113: =Feed!C28 -> 0 | C113: total lbs per year
A114: Total Grain/Protein Supplements | B114: =Feed!C29 -> 731.21 | C114: total lbs per year
A115: Salt and Mineral | B115: =Feed!C30 -> 94.9 | C115: total lbs per year
A117: Default Cow-Calf Prices
B118: 2016 | C118: Five Years Out
A119: =Prices!A5 -> Corn ($/bu) | B119: =Prices!B5 -> 2.925 | C119: =Prices!C5 -> 3.7
A120: =Prices!A7 -> DDGS ($/ton) | B120: =Prices!B7 -> 132.5 | C120: =Prices!C7 -> 167.6068376
A121: =Prices!A10 -> Prairie Hay ($/ton) | B121: =Prices!B10 -> 60 | C121: =Prices!C10 -> 75.8974359
A122: =Prices!A12 -> Pasture Rental ($/acre) | B122: =Prices!B12 -> 19.22 | C122: =Prices!C12 -> 21.142
A123: =Prices!A13 -> Crop Residue ($/acre) | B123: =Prices!B13 -> 15 | C123: =Prices!C13 -> 16.5
A124: =Prices!A14 -> Beef Cow Mineral ($/ton) | B124: =Prices!B14 -> 800 | C124: =Prices!C14 -> 880
A125: =Prices!A17 -> Oct. Heifer Calf Price ($/cwt)* | B125: =Prices!B17 -> 131.62 | C125: =Prices!C17 -> 174.4950848
A126: =Prices!A18 -> Oct. Steer Calves Price ($/cwt)* | B126: =Prices!B18 -> 141.52 | C126: =Prices!C18 -> 187.62
A127: =Prices!A19 -> Beef Cull cow ($/cwt)***** | B127: =Prices!B19 -> 67.75 | C127: =Prices!C19 -> 82.25046148
A129: =Prices!A21 -> * This a predicted October price for the budget year
A130: =Prices!A22 -> *****This a current cull cow price for the date of the latest price update
A133: Kansas State University, Department of Agricultural Economics - www.agmanager.info
A134: =A94 -> Publication: AM-FMG-CowLease | I134: =I94 -> Version- 9.6.2016
A188: KSU Beef Cow Lease | C188: =C1 -> 2016 Production Year | G188: =G1 -> (as of Sept 1st, 2016)
A190: Production Efficiency Information
A191: Weaning Percentage | B191: =B4 -> 0.91
A192: Cow Replacement Percentage | B192: =B5 -> 0.16 | C192: Cull Cow Percentage | G192: =G5 -> 0.16
A194: Revenue | B194: Total per Year per Cow | C194: Cattle Owner | D194: Livestock Operator
A195: Weaned Calf Sale | B195: =J8 -> 683.53285 | C195: =L8 -> Split | D195: Split
A196: Cull Cows | B196: =J9 -> 135.5 | C196: =L9 -> 1 | D196: =1-C196 -> 0
A197: Other Income | B197: 0 | C197: 1 | D197: =1-C197 -> 0
A198: Gross Income | B198: =J11 -> 819.03285
A200: Variable Costs
A201: Pasture | B201: 169.5204 | C201: 0 | D201: =1-C201 -> 1
A202: Crop Residue | B202: 31.2 | C202: 0 | D202: =1-C202 -> 1
A203: Harvested Forage | B203: 120.168 | C203: 0 | D203: 1
A204: Grain/Protein Supplements | B204: 47.27262151 | C204: 0 | D204: 1
A205: Mineral | B205: 37.96 | C205: 0 | D205: 1
A206: Other Feed | B206: 0 | C206: 0 | D206: 1
A207: Labor | B207: 120 | C207: 0.1 | D207: 0.9
A208: Vet Medicine/Drugs | B208: 25.23 | C208: 0.5 | D208: 0.5
A209: Replacement Females | B209: 240 | C209: 1 | D209: 0
A210: Annual Bull Charge or A.I. | B210: 37.41 | C210: 1 | D210: 0
A211: Other Livestock Breeding/Marketing | B211: 20.01 | C211: 0 | D211: 1
A212: Utilities,Gas, Fuel, Oil | B212: 38.28 | C212: 0 | D212: 1
A213: Machinery, Facility/Equip. Repairs | B213: 48.72 | C213: 0 | D213: 1
A214: Other variable costs | B214: 14.79 | C214: 0.5 | D214: 0.5
A215: Total Variable Costs | B215: 950.5610215 | C215: =L28 -> 309.42 | D215: =M28 -> 641.1410215
A217: Fixed Costs
A218: Cattle Ownership Interest | B218: 120 | C218: 1 | D218: =1-C218 -> 0
A219: Cow Death Loss | B219: 20 | C219: 1 | D219: =1-C219 -> 0
A220: Cow Depreciation | B220: 0 | C220: 1 | D220: 0
A221: Equipment/Building Depreciation | B221: 57 | C221: 0 | D221: 1
A222: Taxes | B222: 7 | C222: 0 | D222: 1
A223: Farm/Livestock Insurance | B223: 11.31 | C223: 0.5 | D223: =1-C223 -> 0.5
A224: Other fixed costs | B224: 0 | C224: 0.5 | D224: =1-C224 -> 0.5
A225: Total Fixed Costs | B225: 215.31 | C225: 145.655 | D225: =M38 -> 69.655
A227: Total Costs | B227: 1165.871022 | C227: 455.075 | D227: =M40 -> 710.7960215
C228: 319.575 | D228: =M41 -> 710.7960215 | F228: Expenses Contributed Less Cull Cow and Other Income
A229: Income Over Variable Costs | B229: -131.5281715 | C229: 0.3101552677 | D229: =M42 -> 0.6898447323 | F229: Percentage of calves to split
A230: Income Over Total Costs | B230: -346.8381715 | C230: 212.0013141 | D230: =M43 -> 471.5315359 | F230: Anticipated Income per cow
A235: Kansas State University, Department of Agricultural Economics - www.agmanager.info
A236: =A134 -> Publication: AM-FMG-CowLease | I236: =I134 -> Version- 9.6.2016
